fUST/lending_fUST_20250608
["ID","MTS","AMOUNT","RATE_DAILY","PERIOD"]
[364931691,1749313846493,-213.779778,0.00021189,2]
[364931692,1749313846503,-213.779778,0.00021189,2]
[364931693,1749313846512,-440.0,0.00021189,2]
[364931694,1749313846522,-430.0,0.00021189,2]
[364931695,1749313846532,-440.0,0.00021189,2]
[364931697,1749313846542,-151.0,0.00021189,2]
[364931698,1749313846552,-151.0,0.00021189,2]
[364931699,1749313846562,-430.0,0.00021189,2]
[364931700,1749313846571,-151.0,0.00021189,2]
[364931701,1749313846580,-440.0,0.00021189,2]
[364931702,1749313846590,-430.0,0.00021189,2]
[364931703,1749313846601,-440.0,0.00021189,2]
[364931704,1749313846611,-440.0,0.00021189,2]
[364931705,1749313846620,-440.0,0.00021189,2]
[364931706,1749313846630,-2816.342367,0.00021189,2]
[364931707,1749313846640,-2816.342367,0.00021189,2]
[364931708,1749313846650,-440.0,0.00021189,2]
[364931709,1749313846660,-2816.342367,0.00021189,2]
[364931710,1749313846670,-434.14942137,0.00021189,2]
[364931711,1749313846679,-2816.342367,0.00021189,2]
[364931712,1749313846689,-2816.342367,0.00021189,2]
[364931713,1749313846698,-2816.342367,0.00021189,2]
[364931714,1749313846709,-430.0,0.00021189,2]
[364931715,1749313846719,-440.0,0.00021189,2]
[364931716,1749313846728,-562.0471868,0.00021189,2]
[364931717,1749313846739,-500.0,0.00021189,2]
[364931718,1749313846749,-428.87,0.000212,2]
[364931719,1749313846758,-1196.92,0.000212,2]
[364931720,1749313846768,-900.56777175,0.00021449,2]
[364931721,1749313846781,-4139.99222825,0.00021449,2]
[364931722,1749313846790,-440.0,0.00021449,2]
[364931723,1749313846799,-440.0,0.00021449,2]
[364931724,1749313846809,-440.0,0.00021449,2]
[364931725,1749313846819,-440.0,0.00021449,2]
[364931726,1749313846828,-440.0,0.00021449,2]
[364931727,1749313846838,-440.0,0.00021449,2]
[364931728,1749313846847,-440.0,0.0002145,2]
[364931729,1749313846857,-440.0,0.0002145,2]
[364931730,1749313846866,-579.8,0.00021462,2]
[364931731,1749313846875,-500.0,0.00021462,2]
[364931732,1749313846885,-440.0,0.00021462,2]
[364931733,1749313846894,-541.79,0.00021462,2]
[364931734,1749313846903,-440.0,0.00021462,2]
[364931735,1749313846913,-287.8,0.00021462,2]
[364931736,1749313846922,-461.53,0.00021462,2]
[364931737,1749313846931,-440.0,0.00021462,2]
[364931738,1749313846941,-440.0,0.00021462,2]
[364931739,1749313846950,-440.0,0.00021462,2]
[364931740,1749313846960,-535.8,0.00021462,2]
[364931741,1749313846969,-400.0,0.00021462,2]
[364931742,1749313846978,-420.0,0.00021462,2]
[364931743,1749313846988,-430.0,0.00021463,2]
[364931744,1749313846998,-440.0,0.00021463,2]
[364931745,1749313847007,-430.0,0.00021463,2]
[364931746,1749313847016,-440.0,0.00021463,2]
[364931747,1749313847026,-440.0,0.00021463,2]
[364931748,1749313847035,-430.0,0.00021463,2]
[364931749,1749313847044,-505.315503,0.00021463,2]
[364931750,1749313847053,-430.0,0.00021463,2]
[364931751,1749313847062,-440.0,0.00021463,2]
[364931752,1749313847072,-430.0,0.00021463,2]
[364931753,1749313847082,-371.44406114,0.00021463,2]
[364931754,1749313847092,-420.0,0.00021463,2]
[364931755,1749313847101,-390.0,0.00021463,2]
[364931756,1749313847111,-420.0,0.00021463,2]
[364931757,1749313847120,-440.0,0.00021463,2]
[364931758,1749313847131,-440.0,0.00021463,2]
[364931759,1749313847141,-440.0,0.00021463,2]
[364931760,1749313847151,-410.0,0.00021463,2]
[364931761,1749313847160,-440.0,0.00021463,2]
[364931762,1749313847170,-173.17523759,0.00021463,2]
[364931763,1749313847180,-612.69,0.00021489,2]
[364931764,1749313847191,-215.218392,0.0002149,2]
[364931765,1749313847201,-215.218392,0.0002149,2]
[364931766,1749313847212,-2816.342367,0.0002149,2]
[364931767,1749313847222,-2816.342367,0.0002149,2]
[364931768,1749313847232,-207.4,0.00021618,2]
[364931769,1749313847242,-5040.56,0.00021723,2]
[364931770,1749313847251,-440.0,0.00021723,2]
[364931771,1749313847261,-440.0,0.00021723,2]
[364931772,1749313847272,-440.0,0.00021723,2]
[364931773,1749313847283,-440.0,0.00021723,2]
[364931774,1749313847294,-440.0,0.00021723,2]
[364931775,1749313847304,-414.67246041,0.00021723,2]
[364931776,1749313847314,-440.0,0.00021724,2]
[364931777,1749313847324,-440.0,0.00021724,2]
[364931778,1749313847334,-273.235739,0.00021736,2]
[364931779,1749313847343,-155.313048,0.00021736,2]
[364931780,1749313847353,-151.0,0.00021736,2]
[364931781,1749313847362,-440.0,0.00021736,2]
[364931782,1749313847372,-213.779778,0.00021736,2]
[364931783,1749313847381,-213.779778,0.00021736,2]
[364931784,1749313847391,-440.0,0.00021736,2]
[364931785,1749313847402,-201.70471363,0.000219,6]
[364931786,1749313847412,-300.0,0.00021955,2]
[364931787,1749313847422,-5040.56,0.00021997,2]
[364931788,1749313847432,-291.44,0.00021997,2]
[364931789,1749313847442,-366.32,0.00021997,2]
[364931790,1749313847451,-440.0,0.00021997,2]
[364931791,1749313847462,-440.0,0.00021997,2]
[364931792,1749313847472,-440.0,0.00021998,2]
[364931793,1749313847482,-440.0,0.0002201,2]
[364931794,1749313847492,-440.0,0.0002201,2]
[364931795,1749313847502,-201.70471342,0.00022015,6]
[364931796,1749313847512,-201.70471342,0.00022131,6]
[364931797,1749313847521,-153.609304,0.00022173,7]
[364931798,1749313847531,-151.0,0.00022173,7]
[364931799,1749313847540,-171.154142,0.00022173,7]
[364931800,1749313847550,-171.154142,0.00022173,7]
[364931801,1749313847560,-151.0,0.00022173,7]
[364931802,1749313847569,-420.0,0.00022185,2]
[364931803,1749313847579,-440.0,0.00022185,2]
[364931804,1749313847589,-440.0,0.00022185,2]
[364931805,1749313847599,-440.0,0.00022185,2]
[364931806,1749313847609,-440.0,0.00022185,2]
[364931807,1749313847619,-440.0,0.00022185,2]
[364931808,1749313847629,-440.0,0.00022185,2]
[364931809,1749313847639,-440.0,0.00022185,2]
[364931810,1749313847649,-440.0,0.00022185,2]
[364931811,1749313847659,-215.218392,0.00022185,7]
[364931812,1749313847668,-215.218392,0.00022185,7]
[364931813,1749313847678,-151.0,0.00022185,7]
[364931814,1749313847687,-213.779778,0.00022185,7]
[364931815,1749313847697,-213.779778,0.00022185,7]
[364931816,1749313847707,-2816.342367,0.00022185,2]
[364931817,1749313847716,-2816.342367,0.00022185,2]
[364931818,1749313847726,-440.0,0.00022187,2]
[364931819,1749313847736,-370.0,0.00022187,2]
[364931820,1749313847746,-356.78915428,0.00022187,2]
[364931821,1749313852576,935.88,0.00018444,2]
[364931823,1749313934882,923.97,0.00018573,2]
[364931824,1749314015091,996.02,0.00018502,2]
[364931825,1749314096516,983.35,0.00018456,2]
[364931826,1749314179593,970.83,0.00018444,2]
[364931827,1749314259935,958.47,0.00018565,2]
[364931835,1749314335063,165.627146,0.00013699,2]
[364931838,1749314342010,946.28,0.0001858,2]
[364931844,1749314422637,934.23,0.00018566,2]
[364931845,1749314431274,150.0,0.00019,2]
[364931846,1749314505930,922.34,0.00018605,2]
[364931848,1749314588069,910.6,0.00018571,2]
[364931851,1749314669428,899.01,0.00018575,2]
[364931852,1749314750817,908.1,0.00018562,2]
[364931853,1749314825117,-150.0,0.00019363,2]
[364931854,1749314825144,-176.47904011,0.00020064,2]
[364931855,1749314825167,-300.0,0.00020161,2]
[364931856,1749314825190,-300.0,0.00020162,2]
[364931857,1749314825212,-500.0,0.00020162,2]
[364931858,1749314825235,-500.0,0.00020162,2]
[364931859,1749314825257,-386.86841024,0.00020162,2]
[364931860,1749314825281,-394.180476,0.00020162,2]
[364931861,1749314825304,-503.21621732,0.00020162,2]
[364931862,1749314825328,-377.32513767,0.00020162,2]
[364931863,1749314825351,-500.0,0.00020162,2]
[364931864,1749314825373,-305.35383338,0.00020162,2]
[364931865,1749314825395,-500.0,0.00020162,2]
[364931866,1749314825416,-277.46726521,0.00020162,2]
[364931867,1749314825440,-500.0,0.00020162,2]
[364931868,1749314825463,-500.0,0.00020162,2]
[364931869,1749314825486,-440.0,0.00020163,2]
[364931870,1749314825508,-440.0,0.00020163,2]
[364931871,1749314825530,-267.29118866,0.00020163,2]
[364931872,1749314825554,-4844.56,0.00020163,2]
[364931873,1749314825575,-440.0,0.00020163,2]
[364931874,1749314825596,-440.0,0.00020163,2]
[364931875,1749314825809,-440.0,0.00020163,2]
[364931876,1749314825833,-440.0,0.00020163,2]
[364931877,1749314825856,-440.0,0.00020163,2]
[364931878,1749314825879,-440.0,0.00020163,2]
[364931879,1749314825901,-440.0,0.00020163,2]
[364931880,1749314825924,-440.0,0.00020163,2]
[364931881,1749314825948,-440.0,0.00020163,2]
[364931882,1749314825973,-159.80067117,0.00020163,2]
[364931883,1749314831546,896.54,0.00018577,2]
[364931884,1749314837560,150.0,0.000189,2]
[364931891,1749314912387,885.13,0.00018451,2]
[364931903,1749314992618,873.86,0.00018431,2]
[364931920,1749315032454,-176.47904011,0.00020064,2]
[364931922,1749315032464,-852.57682697,0.00020106,2]
[364931927,1749315032509,-895.15317303,0.00020106,2]
[364931929,1749315032519,-440.0,0.00020163,2]
[364931931,1749315032529,-440.0,0.00020163,2]
[364931934,1749315032552,-440.0,0.00020163,2]
[364931935,1749315032563,-440.0,0.00020163,2]
[364931937,1749315032573,-440.0,0.00020163,2]
[364931939,1749315032584,-364.89589779,0.00020163,2]
[364931942,1749315032597,-11.02862591,0.00020163,2]
[364931943,1749315032607,-440.0,0.00020163,2]
[364931945,1749315032617,-440.0,0.00020163,2]
[364931948,1749315032628,-440.0,0.00020163,2]
[364931950,1749315032639,-440.0,0.00020163,2]
[364931952,1749315032649,-440.0,0.00020163,2]
[364931954,1749315032658,-440.0,0.00020163,2]
[364931956,1749315032669,-440.0,0.00020163,2]
[364931958,1749315032679,-440.0,0.00020163,2]
[364931960,1749315032688,-440.0,0.00020163,2]
[364931962,1749315032698,-430.0,0.00020163,2]
[364931964,1749315032708,-440.0,0.00020163,2]
[364931966,1749315032718,-440.0,0.00020163,2]
[364931968,1749315032728,-4642.71,0.00020163,2]
[364931970,1749315032738,-440.0,0.00020163,2]
[364931985,1749315032748,-440.0,0.00020163,2]
[364931986,1749315033006,-440.0,0.00020163,2]
[364931987,1749315033017,-440.0,0.00020163,2]
[364931988,1749315033027,-578.29,0.00020163,2]
[364931989,1749315033037,-440.0,0.00020163,2]
[364931990,1749315033048,-440.0,0.00020163,2]
[364931991,1749315033059,-440.0,0.00020163,2]
[364931992,1749315033070,-440.0,0.00020163,2]
[364931993,1749315033085,-440.0,0.00020163,2]
[364931994,1749315033095,-440.0,0.00020163,2]
[364931995,1749315033105,-440.0,0.00020163,2]
[364931996,1749315033116,-440.0,0.00020163,2]
[364931997,1749315033126,-440.0,0.00020163,2]
[364931998,1749315033136,-283.97046111,0.00020163,2]
[364931999,1749315033147,-440.0,0.00020163,2]
[364932000,1749315033158,-440.0,0.00020163,2]
[364932002,1749315033168,-440.0,0.00020163,2]
[364932004,1749315033178,-440.0,0.00020163,2]
[364932006,1749315033188,-440.0,0.00020163,2]
[364932008,1749315033198,-420.0,0.00020163,2]
[364932010,1749315033208,-390.0,0.00020163,2]
[364932012,1749315033217,-380.0,0.00020164,2]
[364932014,1749315033227,-440.0,0.00020164,2]
[364932016,1749315033237,-440.0,0.00020164,2]
[364932018,1749315033247,-430.0,0.00020164,2]
[364932020,1749315033257,-440.0,0.00020164,2]
[364932022,1749315033268,-440.0,0.00020164,2]
[364932024,1749315033278,-574.43913248,0.00020164,2]
[364932026,1749315033289,-420.0,0.00020164,2]
[364932028,1749315033299,-440.0,0.00020164,2]
[364932030,1749315033309,-432.09181388,0.00020164,2]
[364932032,1749315033320,-430.0,0.00020164,2]
[364932034,1749315033330,-440.0,0.00020164,2]
[364932036,1749315033340,-440.0,0.00020164,2]
[364932038,1749315033350,-440.0,0.00020164,2]
[364932040,1749315033360,-440.0,0.00020164,2]
[364932042,1749315033370,-440.0,0.00020164,2]
[364932045,1749315033384,-440.0,0.00020164,2]
[364932047,1749315033394,-558.03,0.00020164,2]
[364932049,1749315033412,-440.0,0.00020164,2]
[364932050,1749315033425,-440.0,0.00020164,2]
[364932052,1749315033436,-431.55632666,0.00020164,2]
[364932055,1749315033446,-440.0,0.00020164,2]
[364932056,1749315033455,-440.0,0.00020164,2]
[364932058,1749315033466,-430.0,0.00020164,2]
[364932061,1749315033477,-401.68990801,0.00020164,2]
[364932062,1749315033486,-430.0,0.00020164,2]
[364932063,1749315033497,-440.0,0.00020164,2]
[364932065,1749315033507,-582.13,0.00020164,2]
[364932067,1749315033517,-440.0,0.00020164,2]
[364932069,1749315033526,-440.0,0.00020164,2]
[364932071,1749315033539,-440.0,0.00020164,2]
[364932073,1749315033548,-440.0,0.00020164,2]
[364932075,1749315033558,-440.0,0.00020164,2]
[364932077,1749315033568,-434.74176524,0.00020164,2]
[364932079,1749315033578,-440.0,0.00020164,2]
[364932081,1749315033588,-500.0,0.00020164,2]
[364932083,1749315033598,-440.0,0.00020164,2]
[364932085,1749315033608,-440.0,0.00020164,2]
[364932087,1749315033618,-440.0,0.00020164,2]
[364932089,1749315033628,-400.0,0.00020164,2]
[364932091,1749315033638,-400.0,0.00020164,2]
[364932093,1749315033648,-440.0,0.00020164,2]
[364932095,1749315033658,-440.0,0.00020164,2]
[364932097,1749315033667,-440.0,0.00020164,2]
[364932099,1749315033678,-440.0,0.00020164,2]
[364932101,1749315033688,-258.47842106,0.00020164,2]
[364932102,1749315033698,-440.0,0.00020164,2]
[364932104,1749315033708,-410.0,0.00020164,2]
[364932107,1749315033718,-440.0,0.00020164,2]
[364932109,1749315033729,-440.0,0.00020164,2]
[364932111,1749315033739,-289.34705371,0.00020164,2]
[364932113,1749315033749,-440.0,0.00020164,2]
[364932115,1749315033759,-440.0,0.00020164,2]
[364932116,1749315033768,-438.51435917,0.00020164,2]
[364932118,1749315033778,-440.0,0.00020164,2]
[364932120,1749315033789,-482.45791142,0.00020164,2]
[364932122,1749315033800,-499.42568069,0.00020164,2]
[364932124,1749315033810,-440.0,0.00020165,2]
[364932126,1749315033820,-433.05810381,0.00020165,2]
[364932128,1749315033831,-495.98344321,0.00020165,2]
[364932130,1749315033842,-440.0,0.00020165,2]
[364932132,1749315033853,-440.0,0.00020165,2]
[364932134,1749315033865,-440.0,0.00020165,2]
[364932136,1749315033876,-440.0,0.00020165,2]
[364932138,1749315033887,-440.0,0.00020165,2]
[364932140,1749315033897,-440.0,0.00020165,2]
[364932142,1749315033909,-440.0,0.00020165,2]
[364932144,1749315033919,-440.0,0.00020165,2]
[364932145,1749315033930,-420.0,0.00020165,2]
[364932147,1749315033940,-440.0,0.00020165,2]
[364932149,1749315033950,-440.0,0.00020165,2]
[364932151,1749315033960,-440.0,0.00020165,2]
[364932153,1749315033970,-440.0,0.00020165,2]
[364932155,1749315033980,-560.0,0.00020165,2]
[364932157,1749315033990,-440.0,0.00020165,2]
[364932159,1749315034001,-440.0,0.00020165,2]
[364932161,1749315034011,-495.29090507,0.00020165,2]
[364932163,1749315034022,-402.31059185,0.00020165,2]
[364932165,1749315034032,-333.70321338,0.00020165,2]
[364932167,1749315034043,-500.0,0.00020165,2]
[364932169,1749315034053,-500.0,0.00020165,2]
[364932171,1749315034063,-420.0,0.00020165,2]
[364932173,1749315034073,-440.0,0.00020165,2]
[364932174,1749315034083,-440.0,0.00020165,2]
[364932176,1749315034094,-440.0,0.00020165,2]
[364932178,1749315034105,-440.0,0.00020165,2]
[364932180,1749315034115,-440.0,0.00020165,2]
[364932182,1749315034125,-175.886,0.00020205,2]
[364932184,1749315034135,-440.0,0.00020437,2]
[364932186,1749315034145,-440.0,0.00020437,2]
[364932188,1749315034155,-4642.71,0.00020437,2]
[364932190,1749315034166,-440.0,0.00020437,2]
[364932192,1749315034176,-440.0,0.00020437,2]
[364932194,1749315034185,-440.0,0.00020437,2]
[364932196,1749315034195,-405.92001821,0.00020438,2]
[364932198,1749315034205,-440.0,0.00020438,2]
[364932200,1749315034215,-469.7,0.00020438,2]
[364932202,1749315034224,-440.0,0.00020438,2]
[364932204,1749315034234,-500.57069289,0.00020439,2]
[364932206,1749315034244,-440.0,0.00020439,2]
[364932208,1749315034255,-210.613776,0.00020548,2]
[364932210,1749315034265,-834.52263295,0.00020578,2]
[364932211,1749315034275,-160.0,0.00020578,2]
[364932213,1749315034286,-160.0,0.00020579,2]
[364932215,1749315034298,-440.0,0.00020711,2]
[364932217,1749315034308,-522.48,0.00020711,2]
[364932219,1749315034318,-440.0,0.00020711,2]
[364932221,1749315034328,-4642.71,0.00020711,2]
[364932223,1749315034338,-440.0,0.00020711,2]
[364932225,1749315034348,-440.0,0.00020711,2]
[364932227,1749315034358,-440.0,0.00020711,2]
[364932229,1749315034368,-440.0,0.00020712,2]
[364932231,1749315034378,-260.64,0.00020712,2]
[364932233,1749315034388,-199.54,0.00020713,2]
[364932235,1749315034401,-500.0,0.00020855,2]
[364932237,1749315034412,-205.14431355,0.000209,4]
[364932239,1749315034422,-440.0,0.00020985,2]
[364932241,1749315034432,-440.0,0.00020985,2]
[364932243,1749315034443,-4642.71,0.00020985,2]
[364932245,1749315034454,-440.0,0.00020985,2]
[364932247,1749315034464,-440.0,0.00020985,2]
[364932249,1749315034476,-440.0,0.00020985,2]
[364932251,1749315034488,-440.0,0.00020986,2]
[364932253,1749315034498,-10613.06605123,0.00021,3]
[364932265,1749315034610,-1215.0904876,0.00021,3]
[364932439,1749315038420,-414.20687799,0.00021,3]
[364932440,1749315038432,-333.70321338,0.00021,3]
[364932449,1749315040776,-500.94263471,0.00021,3]
[364932450,1749315041692,1000.0,0.00025,120]
[364932465,1749315043611,-918.199975,0.00021,3]
[364932696,1749315046967,-14130.09560134,0.00021,3]
[364932697,1749315046978,-385.98,0.00021,2]
[364932698,1749315046988,-205.14431331,0.00021048,4]
[364932699,1749315046998,-164.53075974,0.00021075,2]
[364932700,1749315047010,-422.70486328,0.00021175,2]
[364932701,1749315047020,-420.0,0.00021175,2]
[364932702,1749315047029,-232.24427179,0.00021175,2]
[364932703,1749315047039,-189.31904658,0.00021175,2]
[364932704,1749315047050,-410.0,0.00021175,2]
[364932705,1749315047059,-440.0,0.00021175,2]
[364932706,1749315047068,-430.0,0.00021175,2]
[364932707,1749315047078,-420.0,0.00021175,2]
[364932708,1749315047088,-420.7582188,0.00021175,2]
[364932709,1749315047098,-420.0,0.00021175,2]
[364932710,1749315047108,-420.0,0.00021175,2]
[364932711,1749315047118,-440.0,0.00021175,2]
[364932712,1749315047128,-543.54597485,0.00021175,2]
[364932713,1749315047139,-440.0,0.00021175,2]
[364932714,1749315047149,-440.0,0.00021175,2]
[364932715,1749315047159,-420.0,0.00021175,2]
[364932716,1749315047168,-440.0,0.00021175,2]
[364932717,1749315047178,-420.0,0.00021175,2]
[364932718,1749315047188,-440.0,0.00021175,2]
[364932719,1749315047199,-440.0,0.00021175,2]
[364932720,1749315047211,-440.0,0.00021175,2]
[364932721,1749315047221,-440.0,0.00021175,2]
[364932722,1749315047231,-193.72963428,0.00021175,2]
[364932723,1749315047242,-371.25676198,0.00021175,2]
[364932724,1749315047252,-440.0,0.00021175,2]
[364932725,1749315047263,-420.0,0.00021175,2]
[364932726,1749315047274,-410.0,0.00021175,2]
[364932727,1749315047283,-440.0,0.00021175,2]
[364932728,1749315047293,-440.0,0.00021175,2]
[364932729,1749315047303,-440.0,0.00021175,2]
[364932730,1749315047313,-400.0,0.00021175,2]
[364932731,1749315047322,-440.0,0.00021175,2]
[364932732,1749315047333,-440.0,0.00021175,2]
[364932733,1749315047344,-440.0,0.00021175,2]
[364932734,1749315047354,-440.0,0.00021175,2]
[364932735,1749315047363,-440.0,0.00021175,2]
[364932736,1749315047373,-229.04574517,0.00021175,2]
[364932737,1749315047382,-266.02928671,0.00021175,2]
[364932738,1749315047392,-440.0,0.00021175,2]
[364932739,1749315047402,-440.0,0.00021175,2]
[364932740,1749315047412,-440.0,0.00021175,2]
[364932741,1749315047426,-430.0,0.00021175,2]
[364932742,1749315047435,-338.4479191,0.00021175,2]
[364932743,1749315047445,-430.0,0.00021175,2]
[364932744,1749315047455,-440.0,0.00021175,2]
[364932745,1749315047466,-440.0,0.00021175,2]
[364932746,1749315047475,-440.0,0.00021175,2]
[364932747,1749315047485,-440.0,0.00021175,2]
[364932748,1749315047495,-430.0,0.00021175,2]
[364932749,1749315047505,-430.0,0.00021175,2]
[364932750,1749315047514,-415.83528251,0.00021175,2]
[364932751,1749315047524,-440.0,0.00021175,2]
[364932752,1749315047534,-447.162159,0.00021175,2]
[364932753,1749315047544,-447.162159,0.00021175,2]
[364932754,1749315047554,-160.0,0.00021187,2]
[364932755,1749315047563,-151.0,0.00021189,2]
[364932756,1749315047573,-151.0,0.00021189,2]
[364932757,1749315047583,-151.0,0.00021189,2]
[364932758,1749315047593,-151.0,0.00021189,2]
[364932759,1749315047603,-151.0,0.00021189,2]
[364932760,1749315047613,-151.0,0.00021189,2]
[364932761,1749315047786,-151.0,0.00021189,2]
[364932762,1749315047796,-192.784524,0.00021189,2]
[364932763,1749315047807,-151.0,0.00021189,2]
[364932764,1749315047817,-151.0,0.00021189,2]
[364932765,1749315047827,-151.0,0.00021189,2]
[364932766,1749315047837,-151.0,0.00021189,2]
[364932767,1749315047846,-151.0,0.00021189,2]
[364932768,1749315047856,-152.270737,0.00021189,2]
[364932769,1749315047865,-151.0,0.00021189,2]
[364932770,1749315047875,-219.931778,0.00021189,2]
[364932771,1749315047885,-219.931778,0.00021189,2]
[364932772,1749315047895,-160.494634,0.00021189,2]
[364932773,1749315047905,-151.0,0.00021189,2]
[364932774,1749315047915,-151.0,0.00021189,2]
[364932775,1749315047925,-169.0407,0.00021189,2]
[364932776,1749315047935,-169.0407,0.00021189,2]
[364932777,1749315047945,-151.0,0.00021189,2]
[364932778,1749315047956,-151.0,0.00021189,2]
[364932779,1749315047967,-151.0,0.00021189,2]
[364932780,1749315047978,-151.0,0.00021189,2]
[364932781,1749315047989,-205.14431331,0.00021196,4]
[364932782,1749315047999,-440.0,0.00021259,2]
[364932783,1749315048009,-440.0,0.00021259,2]
[364932784,1749315048019,-4642.71,0.00021259,2]
[364932785,1749315048030,-440.0,0.00021259,2]
[364932786,1749315048040,-440.0,0.00021259,2]
[364932787,1749315048052,-440.0,0.00021259,2]
[364932788,1749315048062,-440.0,0.0002126,2]
[364932789,1749315048072,-205.14431331,0.00021344,5]
[364932790,1749315048083,-343.8,0.00021439,3]
[364932791,1749315048093,-440.0,0.00021449,2]
[364932792,1749315048103,-151.0,0.0002149,2]
[364932793,1749315048113,-186.02433,0.0002149,2]
[364932794,1749315048123,-205.14431331,0.00021493,5]
[364932795,1749315048134,-440.0,0.00021533,2]
[364932796,1749315048143,-440.0,0.00021533,2]
[364932797,1749315048154,-4642.71,0.00021533,2]
[364932798,1749315048164,-440.0,0.00021533,2]
[364932799,1749315048174,-427.94,0.00021533,2]
[364932800,1749315048185,-440.0,0.00021533,2]
[364932801,1749315048194,-370.0,0.00021534,2]
[364932802,1749315048204,-207.4,0.00021618,2]
[364932803,1749315048214,-205.14431331,0.00021641,5]
[364932804,1749315048224,-440.0,0.00021723,2]
[364932805,1749315048234,-151.0,0.00021735,2]
[364932806,1749315048243,-2621.59,0.00021782,2]
[364932807,1749315048253,-205.14431331,0.00021789,6]
[364932808,1749315048263,-440.0,0.00021807,2]
[364932809,1749315048273,-440.0,0.00021807,2]
[364932810,1749315048282,-4642.71,0.00021807,2]
[364932811,1749315048292,-398.01,0.00021807,2]
[364932812,1749315048303,-440.0,0.00021807,2]
[364932813,1749315048313,-151.0,0.00021918,2]
[364932814,1749315048324,-205.14431331,0.00021937,6]
[364932815,1749315048334,-440.0,0.00021997,2]
[364932816,1749315048344,-164.53075971,0.00022014,2]
[364932817,1749315048354,-151.0,0.00022026,7]
[364932818,1749315048364,-440.0,0.00022081,2]
[364932819,1749315048374,-151.0,0.00022081,7]
[364932820,1749315048385,-440.0,0.00022081,2]
[364932821,1749315048394,-4642.71,0.00022081,2]
[364932822,1749315048404,-151.0,0.00022081,7]
[364932823,1749315048415,-354.757107,0.00022081,2]
[364932824,1749315048427,-288.834841,0.00022082,7]
[364932825,1749315048437,-224.0,0.00022082,7]
[364932826,1749315048446,-151.0,0.00022082,7]
[364932827,1749315048456,-169.0407,0.00022082,7]
[364932828,1749315048466,-169.0407,0.00022082,7]
[364932829,1749315048477,-447.162159,0.00022082,7]
[364932830,1749315048486,-447.162159,0.00022082,7]
[364932831,1749315048497,-151.0,0.00022082,7]
[364932832,1749315048508,-151.0,0.00022082,7]
[364932833,1749315048518,-151.0,0.00022083,7]
[364932834,1749315048528,-219.931778,0.00022083,7]
[364932835,1749315048538,-219.931778,0.00022083,7]
[364932836,1749315048548,-151.0,0.00022084,7]
[364932837,1749315048559,-271.968274,0.00022084,7]
[364932838,1749315048568,-205.14431331,0.00022085,6]
[364932839,1749315048578,-151.0,0.00022185,7]
[364932840,1749315048588,-151.0,0.00022187,7]
[364932841,1749315048598,-171.154142,0.00022187,7]
[364932842,1749315048607,-171.154142,0.00022187,7]
[364932843,1749315048617,-151.0,0.00022187,7]